bitfinex/quotes_BTCUSD_20250522
["timestamp","ask_amount","ask_price","bid_price","bid_amount"]
[1747879578554,2.20007262,109970.0,109960.0,0.00115997]
[1747879579009,2.17453177,109970.0,109960.0,0.00015997]
[1747879579443,2.19053177,109970.0,109960.0,0.00215997]
[1747879579665,2.29910619,109970.0,109960.0,0.00215997]
[1747879580496,2.20707262,109970.0,109960.0,0.00315997]
[1747879581359,2.75175373,109970.0,109960.0,0.00315997]
[1747879581558,0.19108271,109900.0,109890.0,0.0171]
[1747879581974,0.19108271,109900.0,109890.0,0.3571]
[1747879582112,0.19108271,109900.0,109890.0,0.3662]
[1747879582308,0.19108271,109900.0,109890.0,0.45399682]
[1747879582519,0.00909909,109900.0,109890.0,0.65419651]
[1747879582754,0.01824759,109900.0,109890.0,0.93247489]
[1747879582956,0.20023121,109900.0,109890.0,0.93247489]
[1747879583825,0.20023121,109900.0,109890.0,0.7271752]
[1747879584023,0.20023121,109900.0,109890.0,0.73627512]
[1747879584198,0.20023121,109900.0,109890.0,0.93647473]
[1747879584425,0.20023121,109900.0,109890.0,0.92737514]
[1747879584574,0.20123121,109900.0,109890.0,0.93537514]
[1747879584758,0.20123121,109900.0,109890.0,0.67069403]
[1747879584963,0.20123121,109900.0,109890.0,0.93537514]
[1747879585186,0.20123121,109900.0,109890.0,0.94447481]
[1747879585391,0.20123121,109900.0,109890.0,0.7351752]
[1747879585557,0.20123121,109900.0,109890.0,0.74427512]
[1747879586233,0.20123121,109900.0,109890.0,0.75337496]
[1747879586585,0.20123121,109900.0,109890.0,0.76247472]
[1747879586786,0.20123121,109900.0,109890.0,0.9444749]
[1747879586991,0.20123121,109900.0,109890.0,0.93537514]
[1747879587394,0.20123121,109900.0,109890.0,0.0291]
[1747879587395,0.18303328,109900.0,109890.0,0.0291]
[1747879587618,0.18303328,109900.0,109890.0,0.012]
[1747879588397,0.18105228,109900.0,109890.0,0.28728111]
[1747879588605,0.18105228,109900.0,109890.0,0.28328111]
[1747879588814,0.18105228,109900.0,109890.0,0.28928111]
[1747879588815,0.18205228,109900.0,109890.0,0.28928111]
[1747879589029,0.18205228,109900.0,109890.0,0.52492629]
[1747879589238,0.218379,109900.0,109890.0,0.53712605]
[1747879589444,0.895419,109900.0,109890.0,0.54622581]
[1747879589648,0.896419,109900.0,109890.0,0.2865447]
[1747879589851,0.88732049,109900.0,109890.0,0.55122581]
[1747879590054,0.01919769,109900.0,109890.0,0.55222581]
[1747879590255,0.71443538,109900.0,109890.0,0.57042507]
[1747879590518,0.71443521,109900.0,109890.0,0.57042424]
[1747879590739,0.90551801,109900.0,109890.0,0.56132482]
[1747879590967,0.89641883,109900.0,109890.0,0.56132482]
[1747879591184,0.90551801,109900.0,109890.0,0.55222531]
[1747879591387,0.8964195,109900.0,109890.0,0.2875442]
[1747879591596,0.8964195,109900.0,109890.0,0.55222531]
[1747879592096,0.8964195,109900.0,109890.0,0.2875442]
[1747879592309,0.001,109900.0,109890.0,1.02350737]
[1747879592685,0.001,109900.0,109890.0,2.11610737]
[1747879593236,0.41107388,109920.0,109910.0,0.58220197]
[1747879593237,0.66576,109920.0,109910.0,0.58220197]
[1747879593488,1.00453758,109930.0,109920.0,0.21854513]
[1747879593687,1.00453816,109930.0,109920.0,0.8914264]
[1747879593844,1.00453816,109930.0,109920.0,0.90052367]
[1747879594263,1.00453816,109930.0,109920.0,0.90962086]
[1747879594516,1.00453816,109930.0,109920.0,0.90052367]
[1747879594715,1.00453816,109930.0,109920.0,0.98825955]
[1747879594943,1.00453816,109930.0,109920.0,0.99735674]
[1747879595243,0.82260421,109930.0,109920.0,0.99735674]
[1747879595438,0.8135076,109930.0,109920.0,0.99735674]
[1747879595676,0.83170073,109930.0,109920.0,0.97916228]
[1747879595904,0.82260404,109930.0,109920.0,0.97916228]
[1747879596115,0.81350752,109930.0,109920.0,0.99735641]
[1747879596326,0.80441124,109930.0,109920.0,0.99735641]
[1747879596568,0.79531513,109930.0,109920.0,0.99735641]
[1747879597010,0.80441116,109930.0,109920.0,0.99735641]
[1747879597225,0.80441108,109930.0,109920.0,0.99735641]
[1747879597441,0.79531513,109930.0,109920.0,0.99735641]
[1747879597651,0.79531513,109930.0,109920.0,1.71061194]
[1747879597936,0.79531513,109930.0,109920.0,1.71161194]
[1747879598167,0.59304881,109960.0,109930.0,0.35454085]
[1747879598168,0.39292,109960.0,109930.0,0.35454085]
[1747879598395,0.67456,109960.0,109950.0,0.56788499]
[1747879598619,0.27288,109960.0,109950.0,0.94114052]
[1747879598850,0.40168,109980.0,109970.0,0.54914694]
[1747879599069,0.01081016,109990.0,109980.0,0.54912792]
[1747879599285,0.68537016,109990.0,109980.0,0.91064591]
[1747879599502,0.68537016,109990.0,109980.0,0.89204591]
[1747879599503,0.6855196,109990.0,109980.0,0.89204591]
[1747879599725,0.67470944,109990.0,109980.0,0.89204591]
[1747879599968,0.27298944,109990.0,109980.0,1.01782033]
[1747879601051,0.00014944,109990.0,109980.0,1.01782033]
[1747879601284,0.00014944,109990.0,109980.0,1.51791144]
[1747879601496,0.00014944,109990.0,109980.0,1.79075144]
[1747879601725,0.00022944,109990.0,109980.0,1.52607033]
[1747879602187,0.00022944,109990.0,109980.0,1.52807033]
[1747879602409,0.00022944,109990.0,109980.0,1.79275144]
[1747879602630,0.00022944,109990.0,109980.0,1.79075144]
[1747879602874,0.00022944,109990.0,109980.0,1.6109002]
[1747879603116,0.00122944,109990.0,109980.0,1.79775144]
[1747879603374,0.00122944,109990.0,109980.0,1.49342933]
[1747879603847,0.00042341,110020.0,110010.0,0.57180795]
[1747879604049,0.00127023,110020.0,110010.0,1.01825851]
[1747879605110,0.30129675,110020.0,110010.0,0.34]
[1747879605323,0.87551369,110020.0,110010.0,0.343]
[1747879605579,0.87551369,110020.0,110010.0,0.003]
[1747879605793,0.87559376,110020.0,110010.0,0.003]
[1747879606019,0.87659376,110020.0,110010.0,0.01]
[1747879606232,0.87659376,110020.0,110010.0,0.007]
[1747879606448,0.87659376,110020.0,110010.0,0.00892607]
[1747879607298,0.31394733,110020.0,110010.0,0.00892607]
[1747879607531,1.32173782,110020.0,110010.0,0.002]
[1747879607743,0.98710733,110020.0,110010.0,0.002]
[1747879607962,0.98710733,110020.0,110010.0,0.006]
[1747879608177,1.32173782,110020.0,110010.0,0.006]
[1747879608342,0.2000176,109990.0,109980.0,0.34049841]
[1747879608560,0.8741776,109990.0,109980.0,0.43453198]
[1747879608759,0.8741776,109990.0,109980.0,0.09453198]
[1747879608985,0.8741776,109990.0,109980.0,0.43453198]
[1747879609810,0.67416,109990.0,109980.0,0.44362454]
[1747879610071,0.18225536,110000.0,109990.0,0.58164976]
[1747879610072,0.00042341,110000.0,109990.0,0.58164976]
[1747879610324,0.00951357,110000.0,109990.0,1.10434739]
[1747879610556,0.00042341,110000.0,109990.0,1.10434739]
[1747879611536,0.00042341,110000.0,109990.0,1.51254739]
[1747879611949,0.00042341,110000.0,109990.0,1.51454739]
[1747879612816,0.00042341,110000.0,109990.0,1.51554739]
[1747879613020,0.00042341,110000.0,109990.0,2.19994739]
[1747879613226,0.00042341,110000.0,109990.0,1.51554739]
[1747879613448,0.00042341,110000.0,109990.0,2.19994739]
[1747879614079,0.00042341,110000.0,109990.0,1.8653169]
[1747879614283,0.00042341,110000.0,109990.0,2.19994739]
[1747879616707,0.00044299,110020.0,110010.0,0.0182]
[1747879616910,0.00116883,110020.0,110010.0,1.09568558]
[1747879618861,0.21022071,110020.0,110010.0,0.59909165]
[1747879619084,0.21022071,110020.0,110010.0,0.95727139]
[1747879619259,0.19204312,110020.0,110010.0,0.7482]
[1747879620000,0.19204312,110020.0,110010.0,0.75729]
[1747879620211,0.00116883,110020.0,110010.0,1.38593496]
[1747879620432,0.2828975,110020.0,110010.0,1.47996853]
[1747879620663,0.29198642,110020.0,110010.0,1.47996853]
[1747879621110,0.30107559,110020.0,110010.0,1.47996853]
[1747879621764,0.48286071,110020.0,110010.0,1.47996869]
[1747879621976,0.27380883,110020.0,110010.0,1.5356165]
[1747879623613,0.00116883,110020.0,110010.0,1.5172165]
[1747879623829,0.21022047,110020.0,110010.0,1.40500377]
[1747879624057,0.02843535,110020.0,110010.0,1.41409327]
[1747879624252,0.21930964,110020.0,110010.0,1.39591402]
[1747879624457,0.03752452,110020.0,110010.0,1.42318334]
[1747879624784,0.21930964,110020.0,110010.0,0.93626714]
[1747879625006,0.21930964,110020.0,110010.0,0.84223357]
[1747879625007,0.20113221,110020.0,110010.0,0.84223357]
[1747879625225,0.20113221,110020.0,110010.0,0.34]
[1747879626310,0.18180165,110010.0,109990.0,0.62503962]
[1747879626533,0.02727164,110000.0,109990.0,0.62868116]
[1747879626704,0.03636197,110000.0,109990.0,0.63777314]
[1747879626919,0.03672489,110000.0,109990.0,1.00140514]
[1747879627328,0.00945308,110000.0,109990.0,1.01890514]
[1747879627542,0.00036292,110000.0,109990.0,1.01890514]
[1747879627741,0.00036292,110000.0,109990.0,1.11293871]
[1747879627922,0.00036292,110000.0,109990.0,1.11793871]
[1747879628309,0.00036292,110000.0,109990.0,1.11293871]
[1747879628516,0.00036292,110000.0,109990.0,1.11493871]
[1747879630691,0.00036292,110000.0,109990.0,1.11793871]
[1747879632025,0.00036292,110000.0,109990.0,2.21053871]
[1747879635194,0.07308272,110050.0,110020.0,0.34]
[1747879635406,0.07308272,110050.0,110030.0,0.31079045]
[1747879635407,0.00019045,110040.0,110030.0,0.31079045]
[1747879635620,0.00019045,110040.0,110030.0,0.66064912]
[1747879635831,0.20920377,110040.0,110030.0,0.63406185]
[1747879636050,0.19994487,110030.0,110020.0,0.42763425]
[1747879636274,0.19994487,110030.0,110020.0,0.61850846]
[1747879636495,0.20009417,110030.0,110020.0,0.61850846]
[1747879636712,0.20009417,110030.0,110020.0,0.62759746]
[1747879636914,0.20009417,110030.0,110020.0,0.63668638]
[1747879637077,0.20028462,110030.0,110020.0,0.63668638]
[1747879637280,0.20028462,110030.0,110000.0,0.19090851]
[1747879637281,0.19996321,110020.0,110000.0,0.19090851]
[1747879637467,0.00908942,110010.0,110000.0,1.38595396]
[1747879637666,0.018179,110010.0,110000.0,1.04595396]
[1747879638005,0.01836945,110010.0,110000.0,1.40049481]
[1747879638809,0.00927987,110010.0,110000.0,1.40049481]
[1747879639005,0.00927987,110010.0,110000.0,1.49452838]
[1747879639210,0.02745944,110010.0,110000.0,1.06586449]
[1747879639429,0.02745936,110010.0,110000.0,1.06041397]
[1747879640082,0.02745936,110010.0,110000.0,1.06341397]
[1747879640295,0.04563935,110010.0,110000.0,0.9693804]
[1747879640550,0.20017209,110010.0,110000.0,0.94510892]
[1747879640781,0.01837002,110010.0,110000.0,0.64912339]
[1747879641018,0.02745944,110010.0,110000.0,0.98375388]
[1747879641255,0.29245473,110010.0,110000.0,0.006]
[1747879641716,0.21937201,110010.0,110000.0,0.19390892]
[1747879641947,0.21937201,110010.0,110000.0,0.19090892]
[1747879641948,0.21835109,110010.0,110000.0,0.19090892]
[1747879642181,0.27283045,110010.0,110000.0,0.88472031]
[1747879642406,0.30009961,110010.0,110000.0,0.88472031]
[1747879642694,0.30009961,110010.0,110000.0,0.97875388]
[1747879643173,0.30918961,110010.0,110000.0,0.64412339]
[1747879644034,0.30918961,110010.0,110000.0,0.64312339]
[1747879645012,0.31018961,110010.0,110000.0,0.64312339]
[1747879646077,0.27383045,110010.0,110000.0,1.07178745]
[1747879646299,0.28291987,110010.0,110000.0,1.07178745]
[1747879646518,0.28291978,110010.0,110000.0,1.0863283]
[1747879646735,0.3000987,110010.0,110000.0,1.0863283]
[1747879647172,0.24603968,110010.0,110000.0,0.18806714]
[1747879647390,0.03636197,110000.0,109990.0,0.5636456]
[1747879647599,0.02727123,110000.0,109990.0,0.65222997]
[1747879647817,0.03636197,110000.0,109990.0,0.65222997]
[1747879648027,0.02727123,110000.0,109990.0,0.74626354]
[1747879648242,0.01837102,110000.0,109990.0,0.74626354]
[1747879648456,0.02746159,110000.0,109990.0,1.08089403]
[1747879648668,0.00019045,110000.0,109990.0,1.08089403]
[1747879649091,0.00019045,110000.0,109990.0,1.08289403]
[1747879649523,0.20928035,110000.0,109990.0,0.2869561]
[1747879649735,0.21829002,110000.0,109990.0,0.44512522]
[1747879649951,0.20019002,110000.0,109990.0,0.90957676]
[1747879650214,0.20019002,110000.0,109990.0,0.92066808]
[1747879650436,0.20019002,110000.0,109990.0,0.91866808]
[1747879650664,0.20019002,110000.0,109990.0,0.72808507]
[1747879650897,0.20019002,110000.0,109990.0,0.89948536]
[1747879651086,0.20839945,110000.0,109990.0,0.89948536]
[1747879651217,0.20839945,110000.0,109990.0,0.89039379]
[1747879651440,0.20839945,110000.0,109990.0,0.62595993]
[1747879651639,0.20839945,110000.0,109990.0,0.66034327]
[1747879651857,0.19109945,110000.0,109990.0,0.66943467]
[1747879652054,0.19109945,110000.0,109990.0,0.92477713]
[1747879652270,0.19109945,110000.0,109990.0,0.93386853]
[1747879652469,0.19109945,110000.0,109990.0,0.92477713]
[1747879653104,0.19109945,110000.0,109990.0,0.93386845]
[1747879653307,0.19109945,110000.0,109990.0,0.92477713]
[1747879653509,0.19109945,110000.0,109990.0,0.93386861]
[1747879654591,0.19109945,110000.0,109990.0,0.94296001]
[1747879654730,0.02746209,110000.0,109990.0,0.95205116]
[1747879654913,0.04564381,110000.0,109990.0,0.95205116]
[1747879655112,0.03655348,110000.0,109990.0,0.94296001]
[1747879655328,0.03655348,110000.0,109990.0,0.95205133]
[1747879655737,0.03655348,110000.0,109990.0,0.95205083]
[1747879655940,0.00019045,110000.0,109990.0,0.96659168]
[1747879656153,0.00019045,110000.0,109990.0,1.24922554]
[1747879656554,0.00019045,110000.0,109990.0,0.98479168]
[1747879657177,0.00019045,110000.0,109990.0,0.98379168]
[1747879657376,0.00019045,110000.0,109990.0,0.98579168]
[1747879657578,0.00019045,110000.0,109990.0,0.98779168]
[1747879658230,0.96373258,110000.0,109990.0,0.09803357]
[1747879658442,0.88144076,110000.0,109990.0,0.2980515]
[1747879658654,0.88144076,110000.0,109990.0,0.30714298]
[1747879658858,0.88144076,110000.0,109990.0,0.3162343]
[1747879659078,0.88144076,110000.0,109990.0,0.3843039]
[1747879659286,0.88144076,110000.0,109990.0,0.3933953]
[1747879659500,0.88144076,110000.0,109990.0,0.66492006]
[1747879659501,0.69962258,110000.0,109990.0,0.66492006]
[1747879659709,0.69053168,110000.0,109990.0,0.7404862]
[1747879659917,0.69962258,110000.0,109990.0,0.7404862]
[1747879660138,0.88144076,110000.0,109990.0,0.72939497]
[1747879660420,0.88144076,110000.0,109990.0,0.62495985]
[1747879660421,0.00928069,110000.0,109990.0,0.62495985]
[1747879660646,0.20019019,110000.0,109990.0,0.4441253]
[1747879660868,0.20019019,110000.0,109990.0,0.64414289]
[1747879661065,0.20019019,110000.0,109990.0,0.63505149]
[1747879661338,0.18200863,110000.0,109990.0,0.341]
[1747879661547,0.19980863,110000.0,109990.0,0.341]
[1747879662012,0.00019045,110000.0,109990.0,1.34178311]
[1747879662243,0.00026923,110030.0,110020.0,0.22715188]
[1747879662462,0.00062902,110030.0,110020.0,0.67037482]
[1747879663345,0.00971678,110030.0,110020.0,0.65227482]
[1747879663569,0.00971678,110030.0,110020.0,0.74630839]
[1747879663762,0.00062902,110030.0,110020.0,0.74830839]
[1747879664022,0.0097167,110030.0,110020.0,0.74830839]
[1747879664227,0.00971678,110030.0,110020.0,0.75030839]
[1747879664443,0.0097167,110030.0,110020.0,0.75030839]
[1747879664871,0.00062902,110030.0,110020.0,0.75030839]
[1747879665091,0.0097167,110030.0,110020.0,0.75030839]
[1747879665282,0.00062902,110030.0,110020.0,0.75030839]
[1747879666153,0.00062902,110030.0,110020.0,0.53487429]
[1747879666154,0.21874984,110030.0,110020.0,0.53487429]
[1747879666366,0.20966216,110030.0,110020.0,0.54396321]
[1747879666579,0.20966216,110030.0,110020.0,0.55305188]
[1747879666580,0.01880463,110030.0,110020.0,0.55305188]
[1747879666784,0.02789264,110030.0,110020.0,0.8877004]
[1747879667004,0.0369809,110030.0,110020.0,0.8837004]
[1747879667216,0.0369809,110030.0,110020.0,0.97773397]
[1747879667423,0.0369809,110030.0,110020.0,0.97873397]
[1747879667662,0.20057389,110030.0,110020.0,0.001]
[1747879667892,0.21907389,110030.0,110020.0,0.001]
[1747879668101,0.01880529,110030.0,110020.0,0.19187421]
[1747879668327,0.02789372,110030.0,110020.0,0.20096313]
[1747879668539,0.20966232,110030.0,110020.0,0.27586437]
[1747879668739,0.20057431,110030.0,110020.0,0.27586437]
[1747879668944,0.01880479,110030.0,110020.0,0.61960156]
[1747879669162,0.01880496,110030.0,110020.0,0.95960156]
[1747879669381,0.00019996,110040.0,110020.0,1.08597598]
[1747879669588,0.00043983,110040.0,110030.0,0.67232756]
[1747879669805,0.00043983,110040.0,110030.0,0.72720399]
[1747879670686,0.00043983,110040.0,110030.0,0.39255547]
[1747879670901,0.00952669,110040.0,110030.0,0.72820399]
[1747879671121,0.01861371,110040.0,110030.0,0.72820399]
[1747879671334,0.00952669,110040.0,110030.0,0.72820399]
[1747879671536,0.00043983,110040.0,110030.0,0.72820399]
[1747879674370,0.00043983,110040.0,110030.0,1.06820399]
[1747879675037,0.00043983,110040.0,110030.0,1.05040399]
[1747879675260,0.00952669,110040.0,110030.0,1.04940399]
[1747879675455,0.00043983,110040.0,110030.0,1.04940399]
[1747879675720,0.00952669,110040.0,110030.0,1.05240399]
[1747879675924,0.00952669,110040.0,110030.0,1.04940399]
[1747879676173,0.03678825,110040.0,110030.0,0.65525583]
[1747879676384,0.03678817,110040.0,110030.0,0.65525583]
[1747879676599,0.03678809,110040.0,110030.0,0.65225583]
[1747879676806,0.03678809,110040.0,110030.0,0.99425583]
[1747879677014,0.03678809,110040.0,110030.0,1.0882894]
[1747879677349,0.03678809,110040.0,110030.0,1.0902894]
[1747879677553,0.00043983,110040.0,110030.0,1.0902894]
[1747879677757,0.02770139,110040.0,110030.0,1.08120155]
[1747879677949,0.02770139,110040.0,110030.0,1.0902894]
[1747879678143,0.01861396,110040.0,110030.0,1.0902894]
[1747879678360,0.02770131,110040.0,110030.0,1.0902894]
[1747879678782,0.04590131,110040.0,110030.0,0.19206714]
[1747879678986,0.43133461,110040.0,110030.0,0.1857686]
[1747879679269,0.29121462,110040.0,110030.0,0.64398719]
[1747879679466,0.29121462,110040.0,110030.0,0.64716806]
[1747879679467,0.48205431,110040.0,110030.0,0.64716806]
[1747879679674,0.49114141,110040.0,110030.0,0.65625607]
[1747879680065,0.2912142,110040.0,110030.0,0.65425607]
[1747879680264,0.29121379,110040.0,110030.0,1.09785366]
[1747879680467,0.30938833,110040.0,110030.0,1.09785366]
[1747879680665,0.30938833,110040.0,110030.0,1.09985366]
[1747879681062,0.30030098,110040.0,110030.0,1.09785366]
[1747879681258,0.27303983,110040.0,110030.0,1.09785366]
[1747879681471,0.00043983,110040.0,110030.0,1.11475366]
[1747879681676,0.20945397,110040.0,110030.0,0.64143145]
[1747879681886,0.20945397,110040.0,110030.0,0.98316831]
[1747879682087,0.20945397,110040.0,110030.0,0.99225657]
[1747879682346,0.19227952,110040.0,110030.0,0.68373695]
[1747879682565,0.87759952,110040.0,110030.0,0.34908843]
[1747879682776,0.86851192,110040.0,110030.0,0.35454085]
[1747879683196,0.86851192,110040.0,110030.0,0.34]
[1747879683401,0.88461192,110040.0,110030.0,0.34]
[1747879683625,0.88461192,110040.0,110030.0,0.88368141]
[1747879683626,0.41415983,110040.0,110030.0,0.88368141]
[1747879683844,0.00143983,110040.0,110030.0,1.00925583]
[1747879684679,0.00143983,110040.0,110030.0,0.67460731]
[1747879684855,0.00143983,110040.0,110030.0,1.00925583]
[1747879685090,0.00043983,110040.0,110030.0,1.09771278]
[1747879685836,0.00043983,110040.0,110030.0,1.12032887]
[1747879686575,0.03189811,110080.0,110070.0,0.19078743]
[1747879686796,0.04098166,110080.0,110070.0,1.03942247]
[1747879687014,0.1,110100.0,110090.0,0.19983623]
[1747879687220,0.31798214,110100.0,110090.0,0.86540153]
[1747879687454,0.3181315,110100.0,110090.0,0.88356781]
[1747879687664,0.13647829,110100.0,110090.0,0.8926507]
[1747879687870,0.1455616,110100.0,110090.0,0.97757081]
[1747879688070,0.39087424,110100.0,110090.0,0.65200518]
[1747879688276,0.57252728,110100.0,110090.0,0.65746322]
[1747879688930,0.57252728,110100.0,110090.0,1.13672246]
[1747879688931,0.10014936,110100.0,110090.0,1.13672246]
[1747879689346,0.10014936,110100.0,110090.0,1.15006483]
[1747879689992,0.31756711,110100.0,110090.0,0.04364808]
[1747879690207,0.18171906,110060.0,110050.0,0.38065732]
[1747879690419,0.46332501,110060.0,110050.0,0.31929979]
[1747879690626,0.27252,110060.0,110050.0,0.44284581]
[1747879690852,0.2997762,110060.0,110050.0,0.42847786]
[1747879691056,0.48149583,110060.0,110050.0,0.66310522]
[1747879691275,0.45423906,110060.0,110040.0,0.53452605]
[1747879691447,0.27252,110060.0,110050.0,0.2089949]
[1747879691688,0.27252,110060.0,110050.0,0.63767699]
[1747879691901,0.19928604,110080.0,110070.0,0.20895709]
[1747879691902,0.43076818,110080.0,110070.0,0.20895709]
[1747879692111,0.90329151,110080.0,110070.0,0.20895726]
[1747879692345,0.90329151,110080.0,110070.0,0.19987255]
[1747879692556,0.90329151,110080.0,110070.0,0.19930365]
[1747879692761,0.90329151,110080.0,110070.0,0.20838836]
[1747879692975,0.68526928,110080.0,110070.0,1.07407865]
[1747879693195,0.00114928,110080.0,110070.0,1.09187865]
[1747879695350,0.00014928,110080.0,110070.0,1.09287865]
[1747879698555,0.189496,110100.0,110090.0,0.56571896]
[1747879698760,0.189496,110100.0,110090.0,1.05688055]
[1747879699387,0.189496,110100.0,110090.0,1.0714214]
[1747879699591,0.189496,110100.0,110090.0,2.14277192]
[1747879699808,0.189496,110100.0,110090.0,1.5550254]
[1747879700014,0.189496,110100.0,110090.0,1.1006704]
[1747879700185,0.189496,110100.0,110090.0,1.0566214]
[1747879700605,0.48014005,110100.0,110090.0,0.64495253]
[1747879700744,0.4710579,110100.0,110090.0,0.64495253]
[1747879700949,0.4710579,110100.0,110090.0,0.66149338]
[1747879701728,0.4710579,110100.0,110090.0,0.65949338]
[1747879702350,0.461976,110100.0,110090.0,0.4877948]
[1747879702579,0.4710579,110100.0,110090.0,0.94372631]
[1747879702930,0.189496,110100.0,110090.0,0.94372631]
[1747879703143,0.189496,110100.0,110090.0,0.96042631]
[1747879704182,0.188496,110100.0,110090.0,0.96042631]
[1747879705827,0.40856,110120.0,110110.0,0.56342186]
[1747879706041,0.68149748,110120.0,110110.0,1.06100533]
[1747879706279,0.00049748,110120.0,110110.0,1.06100533]
[1747879706675,0.00049748,110120.0,110110.0,1.05807673]
[1747879706881,0.00049748,110120.0,110110.0,0.72342821]
[1747879707243,0.00249748,110120.0,110110.0,1.07497673]
[1747879708223,0.67488,110130.0,110120.0,0.20886206]
[1747879708224,0.01,110130.0,110120.0,0.20886206]
[1747879708428,0.01014918,110130.0,110120.0,0.72872696]
[1747879708828,0.01014918,110130.0,110120.0,1.06872696]
[1747879709436,0.01014918,110130.0,110120.0,1.06972696]
[1747879709863,0.42663243,110170.0,110160.0,0.19970909]
[1747879710106,1.10766156,110170.0,110160.0,0.58337691]
[1747879710323,1.30735294,110170.0,110160.0,0.57429996]
[1747879710547,1.12581523,110170.0,110160.0,0.54343523]
[1747879710765,0.00014913,110170.0,110160.0,1.01016414]
[1747879710979,0.00014913,110170.0,110160.0,1.02381993]
[1747879711996,0.50844,110200.0,110180.0,0.01454085]
[1747879712215,0.50844,110200.0,110190.0,0.55791874]
[1747879712432,0.79898749,110200.0,110190.0,0.55791874]
[1747879712647,0.78084,110200.0,110190.0,0.55791874]
[1747879713082,0.78084,110200.0,110190.0,0.65195231]
[1747879713299,0.108,110200.0,110190.0,0.98660083]
[1747879713512,0.108,110200.0,110190.0,0.71057803]
[1747879713734,0.42413811,110240.0,110230.0,0.20865362]
[1747879713948,0.70552848,110240.0,110230.0,0.54330214]
[1747879714185,0.7240819,110240.0,110230.0,0.93550352]
[1747879714398,0.03239541,110240.0,110230.0,1.04407794]
[1747879715042,0.0004973,110240.0,110230.0,1.06247794]
[1747879715254,0.30421811,110260.0,110250.0,0.20861577]
[1747879715466,0.03204723,110260.0,110250.0,0.97194638]
[1747879715675,0.03204723,110260.0,110250.0,0.72475697]
[1747879716191,0.04111612,110260.0,110250.0,0.66591501]
[1747879716385,0.21770548,110240.0,110230.0,0.92136039]
[1747879716592,0.49002548,110240.0,110230.0,0.93650394]
[1747879716812,0.48087503,110240.0,110230.0,0.93650394]
[1747879717046,0.26444393,110280.0,110230.0,0.93650394]
[1747879717047,0.15854781,110300.0,110290.0,0.02720001]
[1747879717273,0.1,110300.0,110290.0,0.93879725]
[1747879717492,0.50824,110300.0,110290.0,0.58674873]
[1747879717720,0.50824,110300.0,110290.0,0.24362192]
[1747879717941,0.50824,110300.0,110290.0,0.31398772]
[1747879718159,0.50824,110300.0,110290.0,0.52445306]
[1747879718375,0.53558653,110300.0,110290.0,0.1813401]
[1747879718592,0.52652093,110300.0,110290.0,0.00906659]
[1747879718803,0.53558644,110300.0,110290.0,0.19947353]
[1747879719012,0.53558644,110300.0,110290.0,0.20854036]
[1747879719165,0.10014898,110300.0,110290.0,0.30457393]
[1747879719372,0.79875994,110300.0,110290.0,0.31364035]
[1747879719570,0.13641139,110300.0,110290.0,0.31764035]
[1747879719822,0.80762554,110300.0,110290.0,0.31764035]
[1747879720025,0.81669131,110300.0,110290.0,0.29031816]
[1747879720229,0.13641131,110300.0,110290.0,0.29031816]
[1747879720444,0.78042898,110300.0,110290.0,0.299385]
[1747879720651,0.78042898,110300.0,110290.0,0.32191295]
[1747879720652,0.99801554,110300.0,110290.0,0.32191295]
[1747879720865,0.99708442,110300.0,110290.0,0.006]
[1747879721083,1.09111799,110300.0,110290.0,0.006]
[1747879721297,0.41083799,110300.0,110290.0,0.006]
[1747879721480,1.09111799,110300.0,110290.0,0.006]
[1747879721693,1.09111799,110300.0,110290.0,0.002]
[1747879722111,0.0090679,110270.0,110260.0,0.1995267]
[1747879722330,1.10843309,110270.0,110260.0,0.24668893]
[1747879722531,1.10843293,110270.0,110260.0,0.25575782]
[1747879722740,1.11750157,110270.0,110260.0,0.25575782]
[1747879722944,1.28980666,110270.0,110260.0,0.23762004]
[1747879723153,0.00906873,110260.0,110250.0,0.20441288]
[1747879723362,0.01813844,110260.0,110250.0,0.34]
[1747879723573,0.18140589,110250.0,110240.0,0.1904472]
[1747879723805,0.20863495,110240.0,110230.0,0.001]
[1747879724022,0.61667495,110240.0,110230.0,0.19151057]
[1747879724240,0.60760433,110240.0,110230.0,0.001]
[1747879724444,0.59853346,110240.0,110230.0,0.00114912]
[1747879724653,0.59853346,110240.0,110230.0,0.20073171]
[1747879724857,0.59853346,110240.0,110230.0,0.21887517]
[1747879725286,0.00906988,110250.0,110240.0,0.20863495]
[1747879725524,1.10828001,110250.0,110240.0,0.21770549]
[1747879725736,1.28061619,110250.0,110240.0,0.1904933]
[1747879725952,1.28061619,110250.0,110240.0,0.20863495]
[1747879726202,1.28061619,110250.0,110240.0,0.21770565]
[1747879726606,1.09920964,110250.0,110240.0,0.22677619]
[1747879726820,0.0090693,110260.0,110250.0,0.20861561]
[1747879727024,0.00906897,110260.0,110250.0,0.21768557]
[1747879727237,1.10827622,110260.0,110250.0,0.20861594]
[1747879727454,1.11734569,110260.0,110250.0,0.21768574]
[1747879727651,0.00906864,110270.0,110260.0,0.1995278]
[1747879727876,1.09920503,110270.0,110260.0,0.1995278]
[1747879728106,1.28057802,110270.0,110260.0,0.18138944]
[1747879728315,1.28057802,110270.0,110260.0,0.19045882]
[1747879728522,0.41904503,110270.0,110260.0,0.19045882]
[1747879728735,1.28960658,110270.0,110260.0,0.19952804]
[1747879728932,1.27147003,110270.0,110260.0,0.00906938]
[1747879729137,0.00906906,110260.0,110250.0,0.57868156]
[1747879729350,0.01813836,110260.0,110250.0,0.52999904]
[1747879730299,0.19047618,110250.0,110240.0,0.19049338]
[1747879730460,0.46259618,110250.0,110240.0,0.01454085]
[1747879730667,0.46259618,110250.0,110240.0,0.02361196]
[1747879730820,0.46259618,110250.0,110240.0,0.03268299]
[1747879731226,0.46259618,110250.0,110240.0,0.02361196]
[1747879731875,0.45352589,110250.0,110240.0,0.02361196]
[1747879732081,0.01814198,110240.0,110230.0,0.65837741]
[1747879732294,0.44185235,110240.0,110230.0,0.5734152]
[1747879732510,0.44185235,110240.0,110230.0,0.66744877]
[1747879732711,0.4509233,110240.0,110230.0,0.66744877]
[1747879733222,0.45999433,110240.0,110230.0,0.66744877]
[1747879733854,0.43378148,110240.0,110230.0,0.67644877]
[1747879734251,0.43378148,110240.0,110230.0,0.67744877]
[1747879734821,0.43378148,110240.0,110230.0,0.5834152]
[1747879735232,0.41564,110240.0,110230.0,0.5834152]
[1747879735647,0.68872,110240.0,110230.0,0.5560794]
[1747879735853,0.69779037,110240.0,110230.0,0.5560794]
[1747879736057,0.70686082,110240.0,110230.0,0.5560794]
[1747879736262,0.72500247,110240.0,110230.0,0.94936554]
[1747879736491,0.70686082,110240.0,110230.0,0.94936554]
[1747879736727,0.71593152,110240.0,110230.0,0.94936554]
[1747879737150,0.71593136,110240.0,110230.0,0.94936554]
[1747879737367,0.72500206,110240.0,110230.0,0.94936554]
[1747879737779,0.41664,110240.0,110230.0,0.96658762]
[1747879737989,0.69779045,110240.0,110230.0,0.96658762]
[1747879738214,0.8882835,110240.0,110230.0,0.10191404]